fUSD/lending_fUSD_20260319
["ID","MTS","AMOUNT","RATE_DAILY","PERIOD"]
[408600245,1773923431819,-500.0,7.543e-05,2]
[408600246,1773923431829,-637.36589349,7.543e-05,2]
[408600247,1773923431839,-637.36589349,7.543e-05,2]
[408600248,1773923431849,-642.03386826,7.543e-05,2]
[408600249,1773923431862,-637.36589349,7.543e-05,2]
[408600250,1773923431871,-500.0,7.543e-05,2]
[408600251,1773923431881,-637.36589349,7.543e-05,2]
[408600252,1773923431890,-500.0,7.543e-05,2]
[408600253,1773923431899,-500.0,7.543e-05,2]
[408600254,1773923431908,-609.74451573,7.543e-05,2]
[408600255,1773923431916,-637.36589349,7.543e-05,2]
[408600256,1773923431925,-637.36589349,7.543e-05,2]
[408600257,1773923431934,-637.36589349,7.543e-05,2]
[408600258,1773923431944,-637.36589349,7.543e-05,2]
[408600259,1773923431954,-637.36589349,7.543e-05,2]
[408600260,1773923431964,-637.36589349,7.543e-05,2]
[408600261,1773923431974,-637.36589349,7.543e-05,2]
[408600262,1773923431983,-637.36589349,7.543e-05,2]
[408600263,1773923431993,-637.36589349,7.543e-05,2]
[408600264,1773923432004,-637.36589349,7.543e-05,2]
[408600265,1773923432014,-637.36589349,7.543e-05,2]
[408600266,1773923432023,-637.36589349,7.543e-05,2]
[408600267,1773923432033,-637.36589349,7.543e-05,2]
[408600268,1773923432043,-637.36589349,7.543e-05,2]
[408600269,1773923432053,-637.36589349,7.543e-05,2]
[408600270,1773923432065,-637.36589349,7.543e-05,2]
[408600271,1773923432075,-637.36589349,7.543e-05,2]
[408600272,1773923432085,-637.36589349,7.543e-05,2]
[408600273,1773923432095,-637.36589349,7.543e-05,2]
[408600274,1773923432104,-637.36589349,7.543e-05,2]
[408600275,1773923432114,-637.36589349,7.543e-05,2]
[408600276,1773923432123,-637.36589349,7.543e-05,2]
[408600277,1773923432133,-637.36589349,7.543e-05,2]
[408600278,1773923432142,-637.36589349,7.543e-05,2]
[408600279,1773923432152,-637.36589349,7.543e-05,2]
[408600280,1773923432161,-637.36589349,7.543e-05,2]
[408600281,1773923432171,-637.36589349,7.543e-05,2]
[408600282,1773923432181,-637.36589349,7.543e-05,2]
[408600283,1773923432191,-637.36589349,7.543e-05,2]
[408600284,1773923432200,-637.36589349,7.543e-05,2]
[408600285,1773923432210,-637.36589349,7.543e-05,2]
[408600286,1773923432219,-637.36589349,7.543e-05,2]
[408600287,1773923432230,-637.36589349,7.543e-05,2]
[408600288,1773923432239,-637.36589349,7.543e-05,2]
[408600289,1773923432248,-637.36589349,7.543e-05,2]
[408600290,1773923432261,-637.36589349,7.543e-05,2]
[408600291,1773923432271,-637.36589349,7.543e-05,2]
[408600292,1773923432280,-637.36589349,7.543e-05,2]
[408600293,1773923432290,-637.36589349,7.543e-05,2]
[408600294,1773923432299,-637.36589349,7.543e-05,2]
[408600295,1773923432309,-637.36589349,7.543e-05,2]
[408600296,1773923432318,-637.36589349,7.543e-05,2]
[408600297,1773923432329,-637.36589349,7.543e-05,2]
[408600298,1773923432339,-637.36589349,7.543e-05,2]
[408600299,1773923432348,-953.45164584,7.543e-05,2]
[408600300,1773923432358,-953.45164584,7.543e-05,2]
[408600301,1773923432367,-953.45164584,7.543e-05,2]
[408600302,1773923432377,-953.45164584,7.543e-05,2]
[408600303,1773923432387,-953.45164584,7.543e-05,2]
[408600304,1773923432397,-953.45164584,7.543e-05,2]
[408600305,1773923432406,-953.45164584,7.543e-05,2]
[408600306,1773923432415,-953.45164584,7.543e-05,2]
[408600307,1773923432425,-953.45164584,7.543e-05,2]
[408600308,1773923432435,-953.45164584,7.543e-05,2]
[408600309,1773923432445,-953.45164584,7.543e-05,2]
[408600310,1773923432455,-953.45164584,7.543e-05,2]
[408600311,1773923432465,-953.45164584,7.543e-05,2]
[408600312,1773923432475,-953.45164584,7.543e-05,2]
[408600313,1773923432484,-953.45164584,7.543e-05,2]
[408600314,1773923432494,-953.45164584,7.543e-05,2]
[408600315,1773923432503,-953.45164584,7.543e-05,2]
[408600316,1773923432512,-953.45164584,7.543e-05,2]
[408600317,1773923432521,-953.45164584,7.543e-05,2]
[408600318,1773923432531,-953.45164584,7.543e-05,2]
[408600319,1773923432540,-953.45164584,7.543e-05,2]
[408600320,1773923432551,-953.45164584,7.543e-05,2]
[408600321,1773923432561,-953.45164584,7.543e-05,2]
[408600322,1773923432572,-953.45164584,7.543e-05,2]
[408600323,1773923432583,-953.45164584,7.543e-05,2]
[408600324,1773923432593,-953.45164584,7.543e-05,2]
[408600325,1773923432603,-953.45164584,7.543e-05,2]
[408600326,1773923432612,-953.45164584,7.543e-05,2]
[408600327,1773923432621,-953.45164584,7.543e-05,2]
[408600328,1773923432631,-953.45164584,7.543e-05,2]
[408600329,1773923432641,-953.45164584,7.543e-05,2]
[408600330,1773923432660,-953.45164584,7.543e-05,2]
[408600331,1773923432669,-953.45164584,7.543e-05,2]
[408600332,1773923432678,-953.45164584,7.543e-05,2]
[408600333,1773923432687,-966.69402984,7.543e-05,2]
[408600334,1773923432696,-966.69402984,7.543e-05,2]
[408600335,1773923432706,-966.69402984,7.543e-05,2]
[408600336,1773923432718,-966.69402984,7.543e-05,2]
[408600337,1773923432727,-966.69402984,7.543e-05,2]
[408600338,1773923432737,-966.69402982,7.543e-05,2]
[408600339,1773923432746,-250.0,7.544e-05,2]
[408600340,1773923432755,-307708.87757311,7.544e-05,2]
[408600348,1773923438234,-830.56212474,7.544e-05,2]
[408600350,1773923438246,-1514.77290428,7.544e-05,2]
[408600352,1773923438257,-5851.8805232,7.544e-05,2]
[408600354,1773923438268,-644.61122412,7.544e-05,2]
[408600363,1773923439791,-1558.81911971,7.544e-05,2]
[408600364,1773923439808,-3241.61196987,7.544e-05,2]
[408600365,1773923439827,-281.649,7.544e-05,2]
[408600366,1773923439863,-570.54789703,7.544e-05,2]
[408600367,1773923439874,-10011.22949497,7.544e-05,2]
[408600368,1773923439914,-5523.86793438,7.544e-05,2]
[408600369,1773923439971,-789.47421459,7.544e-05,2]
[408600370,1773923439982,-448.13622011,7.544e-05,2]
[408600371,1773923440347,-97127.26852466,7.544e-05,2]
[408600376,1773923442485,-70885.76743356,7.544e-05,2]
[408600378,1773923442648,-25582.58724032,7.544e-05,2]
[408600379,1773923442660,-11847.98746803,7.544e-05,2]
[408600414,1773923445382,-1835.06451456,7.544e-05,2]
[408600419,1773923445653,-56758.16580297,7.544e-05,2]
[408600420,1773923445665,-3921.18151579,7.544e-05,2]
[408600421,1773923445675,-14671.42023496,7.545e-05,2]
[408600422,1773923445710,-2841.99578763,7.545e-05,2]
[408600423,1773923445894,-31340.48047741,7.545e-05,2]
[408600424,1773923445904,-3115.34,7.558e-05,2]
[408600425,1773923445913,-390.46916564,7.589e-05,2]
[408600426,1773923445922,-194.24944797,7.59e-05,2]
[408600427,1773923445932,-500.0,7.603e-05,2]
[408600428,1773923445941,-151.0,7.642e-05,2]
[408600429,1773923445950,-1613.39,7.644e-05,2]
[408600430,1773923445959,-9999.99,7.645e-05,2]
[408600431,1773923445969,-4999.99,7.645e-05,2]
[408600432,1773923445978,-1478.64,7.645e-05,2]
[408600433,1773923445987,-19999.99,7.645e-05,2]
[408600434,1773923445996,-999.99,7.645e-05,2]
[408600435,1773923446005,-150.99,7.645e-05,2]
[408600436,1773923446015,-9999.99,7.645e-05,2]
[408600437,1773923446025,-9999.99,7.645e-05,2]
[408600438,1773923446035,-299.99,7.645e-05,2]
[408600441,1773923446045,-150.99,7.645e-05,2]
[408600444,1773923446054,-9999.99,7.645e-05,2]
[408600445,1773923446064,-9999.99,7.645e-05,2]
[408600446,1773923446076,-499.99,7.645e-05,2]
[408600447,1773923446086,-500.0,7.645e-05,2]
[408600448,1773923446095,-223.1461136,7.645e-05,2]
[408600449,1773923446104,-287.70846583,7.645e-05,2]
[408600450,1773923446114,-3904.39,7.671e-05,2]
[408600451,1773923446123,-318.21033924,7.843e-05,2]
[408600452,1773923446133,-1834.04,7.865e-05,2]
[408600453,1773923446142,-1613.39,7.918e-05,2]
[408600454,1773923446152,-10641.92,8.048e-05,2]
[408600455,1773923446162,-742.2918,8.178e-05,2]
[408600456,1773923446171,-1613.39,8.192e-05,2]
[408600457,1773923446180,-500.0,8.219e-05,2]
[408600458,1773923446189,-500.0,8.219e-05,2]
[408600459,1773923446199,-283.86592836,8.219e-05,2]
[408600460,1773923446209,-500.0,8.219e-05,2]
[408600461,1773923446218,-500.0,8.219e-05,2]
[408600462,1773923446227,-185.0,8.286e-05,2]
[408600463,1773923446236,-300.0,8.286e-05,2]
[408600464,1773923446246,-1680.0,8.286e-05,2]
[408600465,1773923446255,-420.0,8.286e-05,2]
[408600466,1773923446264,-255.0,8.296e-05,2]
[408600467,1773923446274,-250.0,8.297e-05,2]
[408600468,1773923446283,-5000.0,8.297e-05,2]
[408600469,1773923446292,-5000.0,8.297e-05,2]
[408600470,1773923446301,-5000.0,8.297e-05,2]
[408600471,1773923446310,-5000.0,8.297e-05,2]
[408600472,1773923446320,-193.0,8.299e-05,2]
[408600473,1773923446329,-5000.0,8.399e-05,2]
[408600474,1773923446338,-1613.39,8.466e-05,2]
[408600475,1773923446347,-5150.03,8.481e-05,2]
[408600476,1773923446355,-5018.32,8.481e-05,2]
[408600477,1773923446365,-500.0,8.493e-05,2]
[408600478,1773923446374,-1122.35804645,8.52e-05,2]
[408600479,1773923446384,-208.21,8.606e-05,2]
[408600480,1773923446393,-1613.39,8.74e-05,2]
[408600481,1773923446402,-500.0,8.767e-05,2]
[408600482,1773923446412,-306.59,8.95e-05,2]
[408600483,1773923446422,-1613.39,9.014e-05,2]
[408600484,1773923446431,-190.01,9.023e-05,2]
[408600485,1773923446440,-448.28,9.038e-05,2]
[408600486,1773923446449,-500.0,9.041e-05,2]
[408600487,1773923446459,-2351.0,9.115e-05,2]
[408600488,1773923446468,-587.0,9.115e-05,2]
[408600489,1773923446477,-10000.0,9.123e-05,2]
[408600490,1773923446486,-433.0,9.126e-05,2]
[408600491,1773923446496,-242.97150567,9.262e-05,2]
[408600492,1773923446506,-8565.75555911,9.262e-05,2]
[408600493,1773923446516,-500.0,9.262e-05,2]
[408600494,1773923446525,-669.13395939,9.262e-05,2]
[408600495,1773923446535,-151.0,9.262e-05,2]
[408600496,1773923446544,-1000.0,9.285e-05,2]
[408600497,1773923446554,-1613.39,9.288e-05,2]
[408600498,1773923446564,-2190.39259852,9.3e-05,2]
[408600499,1773923446573,-500.0,9.315e-05,2]
[408600500,1773923446583,-6644.31176327,9.317e-05,2]
[408600501,1773923446595,-2238.37675153,9.317e-05,2]
[408600502,1773923446604,-1000.0,9.334e-05,2]
[408600503,1773923446614,-1000.0,9.351e-05,2]
[408600504,1773923446623,-1000.0,9.365e-05,2]
[408600505,1773923446635,-9211.34798985,9.372e-05,2]
[408600506,1773923446645,-101915.27525962,9.4e-05,2]
[408600507,1773923576784,10000.01,7.544e-05,2]
[408600508,1773923576808,10000.01,7.544e-05,2]
[408600509,1773923576832,10000.01,7.544e-05,2]
[408600510,1773923576862,10000.01,7.544e-05,2]
[408600511,1773923576886,10000.01,7.544e-05,2]
[408600512,1773923576908,10000.01,7.544e-05,2]
[408600513,1773923576933,10000.01,7.544e-05,2]
[408600514,1773923576960,10000.01,7.544e-05,2]
[408600515,1773923581740,-300.0,7.543e-05,2]
[408600516,1773923584235,-150.0,7.543e-05,2]
[408600517,1773923584277,-8210.38726272,7.544e-05,2]
[408600518,1773923584423,-10000.01,7.544e-05,2]
[408600519,1773923584536,-10000.01,7.544e-05,2]
[408600520,1773923584652,-10000.01,7.544e-05,2]
[408600521,1773923584761,-10000.01,7.544e-05,2]
[408600522,1773923584924,-10000.01,7.544e-05,2]
[408600523,1773923585054,-10000.01,7.544e-05,2]
[408600524,1773923585189,-10000.01,7.544e-05,2]
[408600525,1773923870125,-258.63753161,7.444e-05,2]
[408600526,1773923870146,-250.0,7.483e-05,2]
[408600527,1773923870167,-321.85767119,7.515e-05,2]
[408600528,1773923870193,-300.0,7.522e-05,2]
[408600529,1773923870214,-500.70998659,7.523e-05,2]
[408600530,1773923870236,-500.0,7.523e-05,2]
[408600531,1773923870257,-313.87862379,7.523e-05,2]
[408600532,1773923870278,-500.0,7.523e-05,2]
[408600533,1773923870298,-500.0,7.523e-05,2]
[408600534,1773923870319,-500.0,7.523e-05,2]
[408600535,1773923870340,-500.0,7.523e-05,2]
[408600536,1773923870361,-500.0,7.523e-05,2]
[408600537,1773923870383,-500.0,7.523e-05,2]
[408600538,1773923870404,-300.0,7.543e-05,2]
[408600539,1773923870426,-1200.0,7.543e-05,2]
[408600540,1773923870446,-300.0,7.543e-05,2]
[408600541,1773923870467,-150.0,7.543e-05,2]
[408600542,1773923870488,-500.0,7.543e-05,2]
[408600543,1773923870510,-500.0,7.543e-05,2]
[408600544,1773923870531,-500.0,7.543e-05,2]
[408600545,1773923870552,-529.87223781,7.543e-05,2]
[408600546,1773923870572,-500.0,7.543e-05,2]
[408600547,1773923870597,-647.04649989,7.543e-05,2]
[408600548,1773923870622,-647.04649989,7.543e-05,2]
[408600549,1773923870645,-647.04649989,7.543e-05,2]
[408600550,1773923870669,-647.04649989,7.543e-05,2]
[408600551,1773923870694,-647.04649989,7.543e-05,2]
[408600552,1773923870720,-647.04649989,7.543e-05,2]
[408600553,1773923870746,-647.04649989,7.543e-05,2]
[408600554,1773923870773,-647.04649989,7.543e-05,2]
[408600555,1773923870799,-647.04649989,7.543e-05,2]
[408600556,1773923870824,-647.04649989,7.543e-05,2]
[408600557,1773923870848,-647.04649989,7.543e-05,2]
[408600558,1773923870872,-647.04649989,7.543e-05,2]
[408600559,1773923870897,-647.04649989,7.543e-05,2]
[408600560,1773923870925,-647.04649989,7.543e-05,2]
[408600561,1773923870949,-647.04649989,7.543e-05,2]
[408600562,1773923870972,-647.04649989,7.543e-05,2]
[408600563,1773923870997,-647.04649989,7.543e-05,2]
[408600564,1773923871020,-647.04649989,7.543e-05,2]
[408600565,1773923871045,-647.04649989,7.543e-05,2]
[408600566,1773923871069,-647.04649989,7.543e-05,2]
[408600567,1773923871092,-647.04649989,7.543e-05,2]
[408600568,1773923871116,-647.04649989,7.543e-05,2]
[408600569,1773923871141,-647.04649989,7.543e-05,2]
[408600570,1773923871165,-647.04649989,7.543e-05,2]
[408600571,1773923871189,-647.04649989,7.543e-05,2]
[408600572,1773923871213,-647.04649989,7.543e-05,2]
[408600573,1773923871237,-647.04649989,7.543e-05,2]
[408600574,1773923871260,-647.04649989,7.543e-05,2]
[408600575,1773923871286,-647.04649989,7.543e-05,2]
[408600576,1773923871311,-647.04649989,7.543e-05,2]
[408600577,1773923871335,-647.04649989,7.543e-05,2]
[408600578,1773923871360,-647.04649989,7.543e-05,2]
[408600579,1773923871384,-647.04649989,7.543e-05,2]
[408600580,1773923871410,-647.04649989,7.543e-05,2]
[408600581,1773923871435,-647.04649989,7.543e-05,2]
[408600582,1773923871460,-647.04649989,7.543e-05,2]
[408600583,1773923871484,-647.04649989,7.543e-05,2]
[408600584,1773923871510,-647.04649989,7.543e-05,2]
[408600585,1773923871535,-647.04649989,7.543e-05,2]
[408600586,1773923871559,-647.04649989,7.543e-05,2]
[408600587,1773923871587,-647.04649989,7.543e-05,2]
[408600588,1773923871614,-647.04649989,7.543e-05,2]
[408600589,1773923871640,-647.04649989,7.543e-05,2]
[408600590,1773923871665,-647.04649989,7.543e-05,2]
[408600591,1773923871692,-647.04649989,7.543e-05,2]
[408600592,1773923871718,-647.04649989,7.543e-05,2]
[408600593,1773923871743,-647.04649989,7.543e-05,2]
[408600594,1773923871768,-647.04649989,7.543e-05,2]
[408600595,1773923871793,-648.24473416,7.543e-05,2]
[408600596,1773923871818,-648.24473416,7.543e-05,2]
[408600597,1773923871844,-648.24473416,7.543e-05,2]
[408600598,1773923871869,-648.24473416,7.543e-05,2]
[408600599,1773923871894,-648.24473416,7.543e-05,2]
[408600600,1773923871923,-648.24473416,7.543e-05,2]
[408600601,1773923871948,-648.24473416,7.543e-05,2]
[408600602,1773923871973,-648.24473416,7.543e-05,2]
[408600603,1773923871998,-648.24473416,7.543e-05,2]
[408600604,1773923872022,-648.24473416,7.543e-05,2]
[408600605,1773923872047,-648.24473416,7.543e-05,2]
[408600606,1773923872072,-648.24473416,7.543e-05,2]
[408600607,1773923872098,-648.24473416,7.543e-05,2]
[408600608,1773923872123,-648.24473416,7.543e-05,2]
[408600609,1773923872148,-648.24473416,7.543e-05,2]
[408600610,1773923872172,-648.24473416,7.543e-05,2]
[408600611,1773923872197,-648.24473416,7.543e-05,2]
[408600612,1773923872222,-648.24473416,7.543e-05,2]
[408600613,1773923872247,-648.24473416,7.543e-05,2]
[408600614,1773923872273,-648.24473416,7.543e-05,2]
[408600615,1773923872298,-648.24473416,7.543e-05,2]
[408600616,1773923872323,-648.24473416,7.543e-05,2]
[408600617,1773923872349,-648.24473416,7.543e-05,2]
[408600618,1773923872374,-648.24473416,7.543e-05,2]
[408600619,1773923872399,-648.24473416,7.543e-05,2]
[408600620,1773923872424,-648.24473416,7.543e-05,2]
[408600621,1773923872449,-648.24473416,7.543e-05,2]
[408600622,1773923872474,-648.24473416,7.543e-05,2]
[408600623,1773923872499,-648.24473415,7.543e-05,2]
[408600624,1773923872524,-648.24473415,7.543e-05,2]
[408600625,1773923872549,-648.24473415,7.543e-05,2]
[408600626,1773923872574,-648.24473415,7.543e-05,2]
[408600627,1773923872599,-648.24473415,7.543e-05,2]
[408600628,1773923872624,-648.24473415,7.543e-05,2]
[408600629,1773923872649,-648.24473415,7.543e-05,2]
[408600630,1773923872674,-648.24473415,7.543e-05,2]
[408600631,1773923872698,-62100.00152461,7.544e-05,2]
[408600634,1773924430922,1500.0,9e-05,3]
[408600635,1773924567863,168.1627949,0.00012383,11]
[408600636,1773924631850,-208.0,6.733e-05,2]
[408600637,1773924631860,-71.79428379,6.733e-05,2]
[408600638,1773924631873,-228.20571621,6.733e-05,2]
[408600639,1773924631883,-250.0,6.738e-05,2]
[408600640,1773924631892,-2676.4,6.743e-05,2]
[408600641,1773924631903,-1450.9,6.857e-05,2]
[408600642,1773924631912,-300.0,6.932e-05,2]
[408600643,1773924631922,-1200.0,6.932e-05,2]
[408600644,1773924631931,-300.0,6.933e-05,2]
[408600645,1773924631944,-300.0,6.933e-05,2]
[408600646,1773924631953,-1178.0,6.933e-05,2]
[408600648,1773924631963,-11399.79,6.934e-05,2]
[408600649,1773924631972,-500.0,7.293e-05,2]
[408600651,1773924631981,-5701.469,7.393e-05,2]
[408600652,1773924631991,-249.189,7.393e-05,2]
[408600653,1773924632000,-250.0,7.407e-05,2]
[408600654,1773924632009,-150.0,7.522e-05,2]
[408600655,1773924632018,-500.0,7.523e-05,2]
[408600656,1773924632027,-500.0,7.523e-05,2]
[408600657,1773924632036,-500.0,7.523e-05,2]
[408600658,1773924632046,-500.6537405,7.523e-05,2]
[408600659,1773924632055,-500.0,7.523e-05,2]
[408600660,1773924632064,-500.0,7.523e-05,2]
[408600661,1773924632073,-500.0,7.523e-05,2]
[408600662,1773924632082,-500.0,7.523e-05,2]
[408600663,1773924632091,-500.0,7.523e-05,2]
[408600664,1773924632100,-500.0,7.523e-05,2]
[408600665,1773924632109,-500.0,7.523e-05,2]
[408600666,1773924632119,-151.0,7.541e-05,2]
[408600667,1773924632129,-2914.16001294,7.543e-05,2]
[408600668,1773924632138,-1046.8329771,7.543e-05,2]
[408600669,1773924632148,-500.0,7.543e-05,2]
[408600670,1773924632160,-500.0,7.543e-05,2]
[408600671,1773924632170,-500.0,7.543e-05,2]
[408600672,1773924632179,-500.0,7.543e-05,2]
[408600673,1773924632188,-481.15957892,7.543e-05,2]
[408600674,1773924632199,-500.0,7.543e-05,2]
[408600675,1773924632208,-500.0,7.543e-05,2]
[408600676,1773924632217,-500.0,7.543e-05,2]
[408600677,1773924632226,-500.0,7.543e-05,2]
[408600678,1773924632248,-500.0,7.543e-05,2]
[408600679,1773924632258,-500.0,7.543e-05,2]
[408600680,1773924632267,-500.0,7.543e-05,2]
[408600681,1773924632276,-500.0,7.543e-05,2]
[408600682,1773924632285,-500.0,7.543e-05,2]
[408600683,1773924632295,-500.0,7.543e-05,2]
[408600684,1773924632304,-500.0,7.543e-05,2]
[408600685,1773924632314,-500.0,7.543e-05,2]
[408600686,1773924632323,-500.0,7.543e-05,2]
[408600687,1773924632332,-500.0,7.543e-05,2]
[408600688,1773924632342,-332.8966983,7.543e-05,2]
[408600689,1773924632352,-500.0,7.543e-05,2]
[408600690,1773924632361,-500.0,7.543e-05,2]
[408600691,1773924632371,-500.0,7.543e-05,2]
[408600692,1773924632380,-500.0,7.543e-05,2]
[408600693,1773924632390,-500.0,7.543e-05,2]
[408600694,1773924632400,-500.0,7.543e-05,2]
[408600695,1773924632409,-315.86507768,7.543e-05,2]
[408600696,1773924632419,-234.4160573,7.543e-05,2]
[408600697,1773924632428,-238.00376314,7.543e-05,2]
[408600698,1773924632438,-1449.96,7.543e-05,2]
[408600699,1773924632447,-9999.99,7.544e-05,2]
[408600700,1773924632458,-9999.99,7.544e-05,2]
[408600701,1773924632467,-299.99,7.544e-05,2]
[408600702,1773924632478,-999.99,7.544e-05,2]
[408600703,1773924632488,-7162.23,7.544e-05,2]
[408600704,1773924632497,-150.99,7.544e-05,2]
[408600705,1773924632511,-7461.76,7.544e-05,2]
[408600706,1773924632520,-358137.4926533,7.544e-05,2]
[408600707,1773924632531,-1311102.33551267,7.544e-05,2]
[408600708,1773924632541,-150.0,7.547e-05,2]
[408600709,1773924632551,-298.239919,7.547e-05,2]
[408600710,1773924632560,-736.0,7.585e-05,2]
[408600711,1773924632570,-2266.48431264,7.585e-05,2]
[408600712,1773924632580,-1680.0,7.625e-05,2]
[408600713,1773924632590,-160.0,7.626e-05,2]
[408600714,1773924632599,-420.0,7.626e-05,2]
[408600715,1773924632609,-250.0,7.626e-05,2]
[408600716,1773924632619,-186.4667415,7.681e-05,2]
[408600717,1773924632629,-1342.0,7.696e-05,2]
[408600718,1773924632639,-233.0,7.757e-05,2]
[408600719,1773924632649,-674.0,7.772e-05,2]
[408600720,1773924632658,-300.0,7.8e-05,2]
[408600721,1773924632668,-1795.0,7.817e-05,2]
[408600722,1773924632678,-330.0,7.832e-05,2]
[408600723,1773924632688,-1643.0,7.848e-05,2]
[408600724,1773924632698,-262.0,7.881e-05,2]
[408600725,1773924632712,-585.0,7.897e-05,2]
[408600726,1773924632722,-700.0,7.9e-05,2]
[408600727,1773924632732,-4457.011447,7.945e-05,2]
[408600728,1773924632742,-1743.372946,7.945e-05,2]
[408600729,1773924632753,-8349.95,7.967e-05,2]
[408600730,1773924632763,-1100.0,8e-05,2]
[408600731,1773924632773,-151.0,8.07e-05,2]
[408600732,1773924632783,-875.44189071,8.071e-05,2]
[408600733,1773924632792,-1000.0,8.071e-05,2]
[408600734,1773924632802,-501.49927941,8.071e-05,2]
[408600735,1773924632812,-1000.0,8.071e-05,2]
[408600736,1773924632824,-732.99661061,8.071e-05,2]
[408600737,1773924632833,-1000.0,8.071e-05,2]
[408600738,1773924632843,-1000.0,8.071e-05,2]
[408600739,1773924632853,-1000.0,8.071e-05,2]
[408600740,1773924632863,-1000.0,8.071e-05,2]
[408600741,1773924632873,-1000.0,8.071e-05,2]
[408600742,1773924632883,-306066.94457633,8.073e-05,2]
[408600743,1773924632898,-11124.84542367,8.073e-05,2]
[408600744,1773924632912,-708.0,8.08e-05,2]
[408600745,1773924632923,-358.62,8.122e-05,2]
[408600746,1773924632933,-4965.175586,8.178e-05,2]
[408600747,1773924632943,-500.0,8.219e-05,2]
[408600748,1773924632953,-514.20772298,8.219e-05,2]
[408600749,1773924632963,-500.0,8.219e-05,2]
[408600750,1773924632973,-500.0,8.219e-05,2]
[408600751,1773924632983,-2000.0,8.219e-05,2]
[408600752,1773924632992,-5548.48,8.219e-05,2]
[408600753,1773924633002,-500.0,8.219e-05,2]
[408600754,1773924633012,-1242.0,8.256e-05,2]
[408600755,1773924633022,-418.0,8.256e-05,2]
[408600756,1773924633032,-255.0,8.274e-05,2]
[408600757,1773924633042,-500.0,8.284e-05,2]
[408600758,1773924633051,-500.0,8.284e-05,2]
[408600759,1773924633061,-500.0,8.284e-05,2]
[408600760,1773924633071,-150.0,8.284e-05,2]
[408600761,1773924633081,-151.0,8.294e-05,2]
[408600762,1773924633091,-195.0,8.357e-05,2]
[408600763,1773924633104,-2351.0,8.388e-05,2]
[408600764,1773924633114,-587.0,8.389e-05,2]
[408600765,1773924633124,-250.0,8.409e-05,2]
[408600766,1773924633134,-200.0,8.421e-05,2]
[408600767,1773924633144,-500.0,8.493e-05,2]
[408600768,1773924633155,-152.01,8.543e-05,2]
[408600769,1773924633168,-1600.0,8.543e-05,2]
[408600770,1773924633177,-500.0,8.589e-05,2]
[408600771,1773924633187,-217.71,8.6e-05,2]
[408600772,1773924633198,-1500.0,8.618e-05,2]
[408600773,1773924633208,-888.15670323,8.618e-05,2]
[408600774,1773924633219,-1500.0,8.618e-05,2]
[408600775,1773924633229,-1500.0,8.618e-05,2]
[408600776,1773924633238,-1500.0,8.618e-05,2]
[408600777,1773924633250,-1500.0,8.618e-05,2]
[408600778,1773924633259,-1500.0,8.618e-05,2]
[408600779,1773924633269,-8565.75555911,8.666e-05,2]
[408600780,1773924633279,-500.0,8.666e-05,2]
[408600781,1773924633289,-669.13395939,8.666e-05,2]
[408600782,1773924633298,-151.0,8.666e-05,2]
[408600783,1773924633311,-500.0,8.721e-05,2]
[408600784,1773924633320,-8882.6885148,8.721e-05,2]
[408600785,1773924633330,-151.0,8.721e-05,2]
[408600786,1773924633339,-500.0,8.767e-05,2]
[408600787,1773924633349,-79911.2760909,8.773e-05,2]
[408600788,1773924633359,-9211.34798985,8.776e-05,2]
[408600789,1773924633369,-9552.16786547,8.831e-05,2]
[408600790,1773924633380,-9905.5980765,8.886e-05,2]
[408600791,1773924633391,-10272.10520533,8.941e-05,2]
[408600792,1773924633402,-4064.36119655,8.996e-05,2]
[408600793,1773924633411,-500.0,9.041e-05,2]
[408600794,1773924633421,-11630.68579433,9.047e-05,2]
[408600795,1773924633434,-6199.93003747,9.047e-05,2]
[408600796,1773924633444,-433.0,9.101e-05,2]
[408600797,1773924633454,-207455.6659489,9.125e-05,2]
[408600798,1773924633463,-13883.77172,9.125e-05,2]
[408600799,1773924633473,-151.0,9.125e-05,2]
[408600800,1773924633483,-151.0,9.125e-05,2]
[408600801,1773924633493,-215.885997,9.125e-05,2]
[408600802,1773924633504,-2000.0,9.166e-05,2]
[408600803,1773924633516,-520.9482015,9.166e-05,2]
[408600804,1773924633526,-1503.63793267,9.166e-05,2]
[408600805,1773924633535,-2000.0,9.166e-05,2]
[408600806,1773924633545,-2000.0,9.166e-05,2]
[408600807,1773924633555,-2000.0,9.166e-05,2]
[408600808,1773924633566,-4530.4787,9.178e-05,2]
[408600809,1773924633576,-1204.1,9.226e-05,2]
[408600810,1773924633585,-3292.0,9.226e-05,2]
[408600811,1773924633595,-823.0,9.227e-05,2]
[408600812,1773924633604,-2000.0,9.247e-05,2]
[408600813,1773924633614,-160.0,9.31e-05,2]